fUST/lending_fUST_20250617
["ID","MTS","AMOUNT","RATE_DAILY","PERIOD"]
[366241648,1750156239581,-162.00727507,0.00023973,2]
[366241649,1750156239591,-501.50952492,0.00023973,2]
[366241650,1750156239600,-502.81683429,0.00023973,2]
[366241651,1750156239610,-506.03016744,0.00023973,2]
[366241652,1750156239619,-156.61001566,0.00023973,2]
[366241653,1750156239629,-479.8073704,0.00023973,2]
[366241654,1750156239639,-500.0,0.00023973,2]
[366241655,1750156239648,-500.0,0.00023973,2]
[366241656,1750156239658,-500.0,0.00023973,2]
[366241657,1750156239667,-500.0,0.00023973,2]
[366241658,1750156239676,-500.0,0.00023973,2]
[366241659,1750156239686,-500.0,0.00023973,2]
[366241660,1750156239696,-500.0,0.00023973,2]
[366241661,1750156239705,-500.0,0.00023973,2]
[366241662,1750156239714,-500.0,0.00023973,2]
[366241663,1750156239724,-500.0,0.00023973,2]
[366241664,1750156239734,-501.78848928,0.00023973,2]
[366241665,1750156239743,-500.0,0.00023973,2]
[366241666,1750156239752,-500.0,0.00023973,2]
[366241667,1750156239762,-500.0,0.00023973,2]
[366241668,1750156239771,-500.0,0.00023973,2]
[366241669,1750156239781,-500.0,0.00023973,2]
[366241670,1750156239790,-500.94509774,0.00023973,2]
[366241671,1750156239800,-500.0,0.00023973,2]
[366241672,1750156239810,-500.0,0.00023973,2]
[366241673,1750156239819,-500.0,0.00023973,2]
[366241674,1750156239949,-500.0,0.00023973,2]
[366241675,1750156239959,-1344.561654,0.0002398,5]
[366241676,1750156239969,-1000.0,0.00023982,3]
[366241677,1750156239978,-153.0,0.00023986,2]
[366241678,1750156239989,-153.0,0.00023986,2]
[366241679,1750156240000,-153.0,0.00023986,2]
[366241680,1750156240010,-153.0,0.00023986,2]
[366241681,1750156240020,-153.0,0.00023986,2]
[366241682,1750156240030,-153.0,0.00023986,2]
[366241683,1750156240039,-153.0,0.00023986,2]
[366241684,1750156240049,-153.0,0.00023986,2]
[366241685,1750156240058,-153.0,0.00023986,2]
[366241686,1750156240068,-153.0,0.00023986,2]
[366241687,1750156240077,-153.0,0.00023987,2]
[366241688,1750156240087,-153.0,0.00023987,2]
[366241689,1750156240097,-153.0,0.00023987,2]
[366241690,1750156240106,-290.15,0.0002399,3]
[366241691,1750156240118,-870.49,0.0002399,3]
[366241692,1750156240127,-160.0,0.00023999,2]
[366241693,1750156240138,-500.0,0.00023999,2]
[366241694,1750156240149,-8033.9228576,0.00024,2]
[366241695,1750156240158,-17427.95529716,0.00024,2]
[366241696,1750156240168,-585950.62442547,0.00024,2]
[366241706,1750156240833,-493.28256153,0.00024,2]
[366241721,1750156246736,-197.82,0.0002399,10]
[366241722,1750156246747,-103.54189995,0.00024,2]
[366241723,1750156246759,-313.326558,0.00024,2]
[366241724,1750156246771,-392.19069161,0.00024,2]
[366241725,1750156246783,-3064.37300893,0.00024,2]
[366241726,1750156246808,-1453.70310015,0.00024,2]
[366241743,1750156272133,424.49,0.00018642,2]
[366241744,1750156274642,-157.74935064,0.00019529,2]
[366241745,1750156354775,417.08,0.00018655,2]
[366241746,1750156355908,-417.78541315,0.00019543,2]
[366241747,1750156430555,-204.76240816,0.00019348,2]
[366241748,1750156435721,529.39,0.0001862,2]
[366241749,1750156436798,-300.0,0.00019348,2]
[366241750,1750156479215,155.11,0.000183,30]
[366241751,1750156520542,522.66,0.00018591,2]
[366241752,1750156602498,516.01,0.00018722,2]
[366241753,1750156658137,224.89634684,0.00018835,2]
[366241754,1750156683036,509.44,0.00018621,2]
[366241755,1750156687116,2955.0,0.000219,60]
[366241756,1750156730576,-3513.85222276,0.00019418,2]
[366241757,1750156730599,-992.14777724,0.00019507,2]
[366241758,1750156764895,490.33,0.00018611,2]
[366241759,1750156801094,-429.0,0.00019497,2]
[366241760,1750156848434,478.63,0.00018628,2]
[366241761,1750156875215,2853.9832244,0.000215,120]
[366241763,1750156930882,472.53,0.00018616,2]
[366241764,1750157000117,-3890.08095377,0.000195,2]
[366241765,1750157000139,-420.91904623,0.00019503,2]
[366241766,1750157006628,162.281643,0.00013699,2]
[366241768,1750157013222,461.16,0.00018323,2]
[366241769,1750157063830,-922.33,0.00019196,2]
[366241770,1750157063851,-452.88845188,0.0001938,2]
[366241771,1750157063876,-2922.78154812,0.0001948,2]
[366241772,1750157092379,443.56,0.00018418,2]
[366241774,1750157176227,437.91,0.00018693,2]
[366241776,1750157258748,194.94969224,0.00018599,2]
[366241777,1750157258774,237.39030776,0.00018599,2]
[366241778,1750157259295,-4759.0,0.00019186,2]
[366241780,1750157340074,426.83,0.00018605,2]
[366241781,1750157389982,5000.0,0.00019,2]
[366241782,1750157423160,421.4,0.0001861,2]
[366241786,1750157431867,-756.59681127,0.00019296,2]
[366241787,1750157431877,-301.20318873,0.00019496,2]
[366241788,1750157431925,-541.59681127,0.00019496,2]
[366241789,1750157431935,-205.46514378,0.00019677,2]
[366241790,1750157431947,-156.84561774,0.00019677,2]
[366241791,1750157431956,-161.45082991,0.00019777,2]
[366241795,1750157432130,-48.74677923,0.00019777,2]
[366241797,1750157432139,-362.31076149,0.00020327,2]
[366241799,1750157432149,-1264.2,0.00020382,2]
[366241800,1750157432158,-160.0,0.00020384,2]
[366241802,1750157432167,-357.037055,0.0002045,2]
[366241804,1750157432177,-207.4,0.00020479,2]
[366241806,1750157432186,-168.0,0.00020828,2]
[366241808,1750157432196,-362.31076149,0.00020977,2]
[366241810,1750157432206,-243.0,0.00021052,2]
[366241812,1750157432215,-300.0,0.00021082,2]
[366241814,1750157432224,-258.0,0.00021084,2]
[366241816,1750157432234,-258.0,0.00021153,2]
[366241818,1750157432243,-258.0,0.00021167,2]
[366241820,1750157432253,-825.0,0.00021199,2]
[366241821,1750157432263,-1016.57096458,0.000212,2]
[366241886,1750157437843,-165.42903542,0.000212,2]
[366241888,1750157437853,-168.0,0.00021244,2]
[366241890,1750157437862,-168.0,0.00021259,2]
[366241892,1750157437872,-300.0,0.00021262,2]
[366241894,1750157437882,-300.0,0.00021262,2]
[366241896,1750157437892,-300.0,0.00021262,2]
[366241898,1750157437902,-300.0,0.00021262,2]
[366241900,1750157437912,-1685.61,0.00021268,2]
[366241901,1750157437923,-236.126,0.00021276,2]
[366241902,1750157437933,-258.0,0.0002139,2]
[366241903,1750157437943,-168.0,0.00021511,2]
[366241904,1750157437953,-243.0,0.00021574,2]
[366241905,1750157437963,-215.0738,0.00021848,2]
[366241906,1750157437974,-150.0,0.000219,2]
[366241907,1750157437983,-184.0,0.00022,2]
[366241908,1750157437993,-255.0,0.00022086,2]
[366241909,1750157438004,-2107.01,0.00022154,2]
[366241910,1750157438014,-168.0,0.00022176,2]
[366241911,1750157438024,-255.0,0.0002227,2]
[366241912,1750157438033,-1091.55360921,0.00022276,2]
[366241913,1750157438043,-164.85,0.00022366,10]
[366241915,1750157438052,-290.15,0.00022369,3]
[366241916,1750157438062,-870.49,0.00022369,3]
[366241917,1750157438071,-572.24378739,0.00022376,2]
[366241918,1750157438080,-500.0,0.00022376,2]
[366241919,1750157438088,-1453.8253268,0.00022376,2]
[366241920,1750157438098,-500.0,0.00022376,2]
[366241921,1750157438108,-1453.8253268,0.00022376,2]
[366241922,1750157438117,-500.0,0.00022376,2]
[366241923,1750157438127,-622.46252223,0.00022376,2]
[366241924,1750157438137,-1453.8253268,0.00022376,2]
[366241925,1750157438147,-500.0,0.00022376,2]
[366241926,1750157438156,-1453.8253268,0.00022376,2]
[366241927,1750157438165,-1453.8253268,0.00022376,2]
[366241928,1750157438175,-500.0,0.00022376,2]
[366241929,1750157438184,-1453.8253268,0.00022376,2]
[366241930,1750157438193,-1453.8253268,0.00022376,2]
[366241931,1750157438202,-547.1099933,0.00022376,2]
[366241932,1750157438212,-1453.8253268,0.00022376,2]
[366241933,1750157438221,-1453.8253268,0.00022376,2]
[366241934,1750157438230,-1453.8253268,0.00022376,2]
[366241935,1750157438240,-1453.8253268,0.00022376,2]
[366241936,1750157438250,-1453.8253268,0.00022376,2]
[366241937,1750157438259,-1453.8253268,0.00022376,2]
[366241938,1750157438271,-1453.8253268,0.00022376,2]
[366241939,1750157438290,-1453.8253268,0.00022376,2]
[366241940,1750157438300,-1453.8253268,0.00022376,2]
[366241941,1750157438309,-1453.8253268,0.00022376,2]
[366241942,1750157438319,-506.19762216,0.00022376,2]
[366241943,1750157438340,-947.62770464,0.00022376,2]
[366241944,1750157438350,-1453.8253268,0.00022376,2]
[366241945,1750157438360,-1453.8253268,0.00022376,2]
[366241946,1750157438370,-1453.8253268,0.00022376,2]
[366241947,1750157438380,-1453.8253268,0.00022376,2]
[366241948,1750157438390,-1453.8253268,0.00022376,2]
[366241949,1750157438401,-1453.8253268,0.00022376,2]
[366241950,1750157438412,-1453.8253268,0.00022376,2]
[366241951,1750157438422,-1453.8253268,0.00022376,2]
[366241952,1750157438431,-1453.8253268,0.00022376,2]
[366241953,1750157438441,-1453.8253268,0.00022376,2]
[366241954,1750157438451,-1453.8253268,0.00022376,2]
[366241955,1750157438461,-1453.8253268,0.00022376,2]
[366241956,1750157438470,-1453.8253268,0.00022376,2]
[366241957,1750157438480,-1453.8253268,0.00022376,2]
[366241958,1750157438490,-1453.8253268,0.00022376,2]
[366241959,1750157438499,-1453.8253268,0.00022376,2]
[366241960,1750157438510,-1453.8253268,0.00022376,2]
[366241961,1750157438519,-1453.8253268,0.00022376,2]
[366241962,1750157438530,-1453.8253268,0.00022376,2]
[366241963,1750157438539,-1453.8253268,0.00022376,2]
[366241964,1750157438549,-1453.8253268,0.00022376,2]
[366241965,1750157438559,-1453.8253268,0.00022376,2]
[366241966,1750157438569,-1453.8253268,0.00022376,2]
[366241967,1750157438579,-1453.8253268,0.00022376,2]
[366241968,1750157438589,-1453.8253268,0.00022376,2]
[366241969,1750157438599,-1453.8253268,0.00022376,2]
[366241970,1750157438608,-1453.8253268,0.00022376,2]
[366241971,1750157438617,-1453.8253268,0.00022376,2]
[366241972,1750157438627,-1453.8253268,0.00022376,2]
[366241973,1750157438637,-1453.8253268,0.00022376,2]
[366241974,1750157438647,-1453.8253268,0.00022376,2]
[366241975,1750157438657,-1453.8253268,0.00022376,2]
[366241976,1750157438666,-1453.8253268,0.00022376,2]
[366241977,1750157438676,-1453.8253268,0.00022376,2]
[366241978,1750157438686,-160.0,0.00022377,2]
[366241979,1750157438696,-424.62582665,0.00022377,2]
[366241980,1750157438706,-213.39869953,0.00022377,2]
[366241981,1750157438716,-160.0,0.00022377,2]
[366241982,1750157438726,-229.94211981,0.00022377,2]
[366241983,1750157438736,-160.0,0.00022377,2]
[366241984,1750157438746,-835.82910252,0.00022381,2]
[366241985,1750157438756,-162.00727507,0.000224,2]
[366241986,1750157438766,-502.81683429,0.000224,2]
[366241987,1750157438775,-501.50952492,0.000224,2]
[366241988,1750157438785,-500.0,0.000224,2]
[366241989,1750157438795,-500.0,0.000224,2]
[366241990,1750157438804,-500.0,0.000224,2]
[366241991,1750157438814,-500.0,0.000224,2]
[366241992,1750157438824,-500.0,0.000224,2]
[366241993,1750157438834,-462.021599,0.000224,2]
[366241994,1750157438844,-504.43893691,0.000224,2]
[366241995,1750157438854,-506.03016744,0.000224,2]
[366241996,1750157438866,-156.61001566,0.000224,2]
[366241997,1750157438875,-479.8073704,0.000224,2]
[366241998,1750157438885,-500.0,0.000224,2]
[366241999,1750157438895,-500.0,0.0002255,2]
[366242000,1750157438905,-500.0,0.0002255,2]
[366242001,1750157438916,-1091.5536092,0.00022682,2]
[366242002,1750157438926,-824.29,0.0002289,10]
[366242003,1750157438935,-910.36467144,0.000229,8]
[366242004,1750157438945,-420.0,0.00022931,2]
[366242005,1750157438955,-906.66146165,0.00022948,2]
[366242006,1750157438965,-500.0,0.00022948,2]
[366242007,1750157438974,-1000.0,0.00022948,2]
[366242008,1750157438984,-500.0,0.00023,2]
[366242009,1750157438996,-500.0,0.00023,2]
[366242010,1750157439006,-910.36467119,0.00023003,8]
[366242011,1750157439016,-2528.41,0.0002304,2]
[366242012,1750157439026,-1091.5536092,0.00023088,2]
[366242013,1750157439035,-500.0,0.00023098,2]
[366242014,1750157439045,-1002.25914762,0.00023098,2]
[366242015,1750157439054,-910.36467119,0.00023107,8]
[366242016,1750157439063,-351.0,0.00023122,2]
[366242017,1750157439073,-420.0,0.00023122,2]
[366242018,1750157439084,-301.0,0.00023122,2]
[366242019,1750157439093,-305.0,0.00023122,2]
[366242020,1750157439103,-162.281643,0.00023182,2]
[366242021,1750157439112,-910.36467119,0.0002321,8]
[366242022,1750157439122,-223.0315306,0.00023217,2]
[366242023,1750157439131,-910.36467119,0.00023314,9]
[366242024,1750157439141,-160.0,0.00023349,2]
[366242025,1750157439151,-583.0172543,0.0002337,2]
[366242026,1750157439160,-910.36467119,0.00023417,9]
[366242027,1750157439169,-1091.5536092,0.00023494,2]
[366242028,1750157439179,-545.082514,0.0002352,3]
[366242029,1750157439189,-910.36467119,0.00023521,9]
[366242030,1750157439198,-850.91645216,0.00023548,2]
[366242031,1750157439207,-1000.0,0.00023548,2]
[366242032,1750157439217,-6735.7142128,0.00023601,2]
[366242033,1750157439227,-910.36467119,0.00023624,9]
[366242034,1750157439236,-255.0,0.00023644,2]
[366242035,1750157439246,-30488.92665358,0.000237,7]
[366242036,1750157439255,-800.0,0.00023701,2]
[366242037,1750157439265,-910.36467119,0.00023728,9]
[366242038,1750157439275,-580.3,0.00023739,3]
[366242039,1750157439284,-800.0,0.00023739,2]
[366242040,1750157439294,-255.0,0.00023748,2]
[366242041,1750157439303,-210.18673733,0.00023783,2]
[366242042,1750157439313,-910.36467119,0.00023831,10]
[366242043,1750157439323,-800.0,0.00023853,2]
[366242044,1750157439334,-153.0,0.00023867,2]
[366242045,1750157439344,-153.0,0.00023867,2]
[366242046,1750157439354,-153.0,0.00023867,2]
[366242047,1750157439364,-153.0,0.00023867,2]
[366242048,1750157439374,-153.0,0.00023867,2]
[366242049,1750157439384,-153.0,0.00023867,2]
[366242050,1750157439394,-153.0,0.00023867,2]
[366242052,1750157439404,-153.0,0.00023867,2]
[366242054,1750157439414,-153.0,0.00023867,2]
[366242056,1750157439423,-153.0,0.00023867,2]
[366242057,1750157439433,-153.0,0.00023867,2]
[366242059,1750157439442,-153.0,0.00023867,2]
[366242060,1750157439452,-153.0,0.00023867,2]
[366242061,1750157439462,-500.0,0.00023895,2]
[366242062,1750157439472,-17560.55572274,0.000239,4]
[366242063,1750157439481,-1091.5536092,0.000239,2]
[366242064,1750157439490,-800.0,0.00023908,2]
[366242065,1750157439500,-2949.81,0.00023927,2]
[366242066,1750157439509,-910.36467119,0.00023934,10]
[366242067,1750157439519,-800.0,0.00023964,2]
[366242068,1750157439528,-375.8986295,0.00023964,2]
[366242069,1750157439538,-500.0,0.00023973,2]
[366242070,1750157439547,-500.0,0.00023973,2]
[366242071,1750157439557,-608.98161254,0.00023973,2]
[366242072,1750157439567,-1344.561654,0.0002398,5]
[366242073,1750157439576,-271195.10919323,0.00024,2]
[366242074,1750157439586,-424.62582665,0.00024,7]
[366242075,1750157439595,-11900.09110799,0.00024,7]
[366242076,1750157439605,-129522.21,0.00024,2]
[366242077,1750157439614,-152.46553,0.00024,7]
[366242078,1750157439624,-151.0,0.00024,9]
[366242079,1750157439633,-151.0,0.00024,10]
[366242080,1750157439643,-151.0,0.00024,7]
[366242081,1750157439652,-9257.4936,0.00024,30]
[366242082,1750157439662,-395505.73547769,0.00024,2]
[366242083,1750157439676,-115443.02809589,0.00024,2]
[366242084,1750157439686,-2572.17069685,0.00024,2]
[366242085,1750157439696,-2143.6,0.00024,7]
[366242086,1750157439706,-5155.05,0.00024,7]
[366242087,1750157439715,-151.0,0.00024,7]
[366242088,1750157439726,-317.0,0.00024,3]
[366242089,1750157439736,-1165.71700611,0.00024,120]
[366242090,1750157439746,-1000.0,0.00024,5]
[366242092,1750157439756,-1009.814414,0.00024,2]
[366242094,1750157439765,-155.0,0.00024,2]
[366242095,1750157439775,-636.0,0.00024036,2]
[366242096,1750157439784,-910.36467119,0.00024038,10]
[366242097,1750157439794,-636.0,0.00024085,2]
[366242098,1750157439803,-651.20526447,0.00024096,2]
[366242099,1750157439813,-250.0,0.000241,2]
[366242100,1750157439822,-250.0,0.000241,2]
[366242101,1750157439832,-250.0,0.000241,2]
[366242102,1750157439842,-250.0,0.000241,2]
[366242103,1750157439852,-250.0,0.000241,2]
[366242104,1750157439862,-250.0,0.000241,2]
[366242105,1750157439872,-250.0,0.000241,2]
[366242107,1750157439882,-250.0,0.000241,2]
[366242108,1750157439892,-250.0,0.000241,2]
[366242109,1750157439902,-250.0,0.000241,2]
[366242110,1750157439912,-250.0,0.000241,2]
[366242111,1750157439924,-250.0,0.000241,2]
[366242112,1750157439933,-250.0,0.000241,2]
[366242113,1750157439943,-302.4,0.000241,2]
[366242114,1750157439953,-986.51,0.000241,2]
[366242115,1750157439962,-461.2182437,0.00024109,6]
[366242116,1750157439971,-464.621952,0.00024109,6]
[366242117,1750157439980,-460.0,0.00024109,6]
[366242118,1750157439989,-367.78967143,0.00024109,6]
[366242119,1750157439999,-460.0,0.00024109,6]
[366242120,1750157440008,-460.0,0.00024109,6]
[366242121,1750157440017,-463.58349191,0.00024109,6]
[366242122,1750157440028,-345.30571477,0.00024109,6]
[366242123,1750157440037,-439.99991406,0.00024109,6]
[366242124,1750157440047,-434.46097685,0.00024109,6]
[366242125,1750157440057,-433.99739151,0.00024109,6]
[366242126,1750157440066,-446.31922259,0.00024109,6]
[366242127,1750157440075,-444.13562718,0.00024109,6]
[366242128,1750157440085,-506.50886475,0.00024109,6]
[366242129,1750157440095,-463.30433169,0.00024109,6]
[366242130,1750157440105,-439.87670812,0.00024109,6]
[366242131,1750157440115,-460.0,0.00024109,6]
[366242132,1750157440124,-430.0,0.00024109,6]
[366242133,1750157440134,-460.0,0.00024109,6]
[366242134,1750157440144,-432.18637601,0.00024109,6]
[366242135,1750157440154,-460.0,0.00024109,6]
[366242136,1750157440164,-372.67777219,0.00024109,6]
[366242137,1750157440173,-290.59078919,0.00024109,6]
[366242138,1750157440184,-460.0,0.00024109,6]
[366242139,1750157440195,-460.0,0.00024109,6]
[366242140,1750157440205,-445.78080013,0.00024109,6]
[366242141,1750157440214,-273.10019851,0.00024109,6]
[366242142,1750157440224,-460.0,0.00024109,6]
[366242143,1750157440373,-424.3750428,0.00024109,6]
[366242144,1750157440384,-522.73462613,0.00024109,6]
[366242145,1750157440394,-443.97820869,0.00024109,6]
[366242146,1750157440404,-446.83444384,0.00024109,6]
[366242147,1750157440413,-434.650413,0.00024109,6]
[366242148,1750157440423,-435.39462352,0.00024109,6]
[366242149,1750157440433,-460.0,0.00024109,6]
[366242150,1750157440442,-554.27567543,0.00024109,6]
[366242151,1750157440452,-442.73989609,0.00024109,6]
[366242152,1750157440461,-460.0,0.00024109,6]
[366242153,1750157440471,-344.81514097,0.00024109,6]
[366242154,1750157440480,-453.82787293,0.00024109,6]
[366242155,1750157440490,-460.0,0.00024109,5]
[366242156,1750157440500,-460.0,0.00024109,6]
[366242157,1750157440510,-396.67865282,0.00024109,6]
[366242158,1750157440521,-460.0,0.00024109,6]
[366242159,1750157440531,-300.0,0.00024109,6]
[366242160,1750157440540,-433.73987974,0.00024109,6]
[366242161,1750157440549,-431.46180281,0.00024109,6]
[366242162,1750157440560,-441.64287395,0.00024109,6]
[366242163,1750157440570,-460.0,0.00024109,6]
[366242164,1750157440581,-502.93533931,0.00024109,6]
[366242165,1750157440590,-464.09414788,0.00024109,6]
[366242166,1750157440600,-517.89059055,0.00024109,6]
[366242167,1750157440609,-460.0,0.00024109,6]
[366242168,1750157440619,-460.54440154,0.00024109,6]
[366242169,1750157440629,-464.94745786,0.00024109,6]
[366242170,1750157440639,-1000.0,0.00024109,6]
[366242171,1750157440648,-460.0,0.00024109,6]
[366242172,1750157440658,-460.0,0.00024109,6]
[366242173,1750157440668,-465.14788915,0.00024109,6]
[366242174,1750157440678,-460.0,0.00024109,6]
[366242175,1750157440687,-444.14840402,0.00024109,6]
[366242176,1750157440697,-460.0,0.00024109,6]
[366242177,1750157440706,-436.11555198,0.00024109,6]
[366242178,1750157440716,-466.99073651,0.00024109,6]
[366242179,1750157440725,-460.0,0.00024109,6]
[366242180,1750157440734,-464.54922775,0.00024109,6]
[366242181,1750157440744,-372.73514678,0.00024109,6]
[366242182,1750157440754,-460.0,0.00024109,6]
[366242183,1750157440764,-453.97221297,0.00024109,6]
[366242184,1750157440774,-460.0,0.00024109,6]
[366242185,1750157440783,-460.0,0.00024109,6]
[366242186,1750157440795,-460.0,0.00024109,6]
[366242187,1750157440806,-460.0,0.00024109,6]
[366242188,1750157440816,-460.0,0.00024109,6]
[366242189,1750157440826,-460.0,0.00024109,6]
[366242190,1750157440837,-460.0,0.00024109,6]
[366242191,1750157440847,-460.0,0.00024109,6]
[366242192,1750157440857,-461.42675897,0.00024109,6]
[366242193,1750157440867,-463.16092514,0.00024109,6]
[366242194,1750157440878,-460.0,0.00024109,6]
[366242195,1750157440888,-464.82642453,0.00024109,6]
[366242196,1750157440898,-460.0,0.00024109,6]
[366242197,1750157440907,-467.25431127,0.00024109,6]
[366242198,1750157440923,-418.68253964,0.00024109,6]
[366242199,1750157440933,-536.92302758,0.00024109,6]
[366242200,1750157440943,-460.0,0.00024109,6]
[366242201,1750157440952,-235.49071353,0.00024109,6]
[366242202,1750157440963,-460.0,0.00024109,6]
[366242203,1750157440972,-396.52817884,0.00024109,6]
[366242204,1750157440984,-460.0,0.00024109,6]
[366242205,1750157440994,-460.0,0.00024109,6]
[366242206,1750157441004,-460.0,0.00024109,6]
[366242207,1750157441014,-374.79644133,0.00024109,6]
[366242208,1750157441024,-442.57925222,0.00024109,6]
[366242209,1750157441033,-460.0,0.00024109,6]
[366242210,1750157441043,-432.22921207,0.00024109,6]
[366242211,1750157441053,-425.41620994,0.00024109,6]
[366242212,1750157441063,-443.08066747,0.00024109,6]
[366242213,1750157441072,-460.0,0.00024109,6]
[366242214,1750157441084,-460.0,0.00024109,6]
[366242215,1750157441094,-422.59996604,0.00024109,6]
[366242216,1750157441104,-442.63154467,0.00024109,6]
[366242217,1750157441114,-379.35369432,0.00024109,6]
[366242218,1750157441123,-460.0,0.00024109,6]
[366242219,1750157441133,-460.0,0.00024109,6]
[366242220,1750157441143,-460.0,0.00024109,6]
[366242221,1750157441152,-405.09985925,0.00024109,6]
[366242222,1750157441162,-460.0,0.00024109,6]
[366242223,1750157441171,-442.6318176,0.00024109,6]
[366242224,1750157441181,-460.0,0.00024109,6]
[366242225,1750157441191,-460.0,0.00024109,6]
[366242226,1750157441200,-460.0,0.00024109,6]
[366242227,1750157441210,-460.0,0.00024109,6]
[366242228,1750157441219,-424.3913354,0.00024109,6]
[366242229,1750157441230,-405.58317677,0.00024109,6]
[366242230,1750157441240,-466.48787511,0.00024109,6]
[366242231,1750157441249,-449.25557162,0.00024109,6]
[366242232,1750157441259,-473.28805817,0.00024109,6]
[366242233,1750157441269,-460.0,0.00024109,6]
[366242234,1750157441279,-460.0,0.00024109,6]
[366242235,1750157441288,-444.98754966,0.00024109,6]
[366242236,1750157441298,-471.42205368,0.00024109,6]
[366242237,1750157441307,-469.28954457,0.00024109,6]
[366242238,1750157441317,-469.11211688,0.00024109,6]
[366242239,1750157441327,-460.0,0.00024109,6]
[366242240,1750157441338,-396.90789758,0.00024109,6]
[366242241,1750157441348,-460.0,0.00024109,6]
[366242242,1750157441357,-141.56044077,0.00024109,6]
[366242257,1750157442612,-307.37044108,0.0002399,2]
[366242258,1750157442718,-0.01945108,0.0002399,2]
[366242259,1750157442730,-5497.66847041,0.0002399,2]
[366242260,1750157442742,-541.13287452,0.0002399,2]
[366242272,1750157443043,-10600.0,0.0002399,2]
[366242293,1750157445836,-613.8373602,0.00022376,2]
[366242295,1750157445847,-613.8373602,0.00022376,2]
[366242297,1750157445857,-613.8373602,0.00022376,2]
[366242299,1750157445866,-613.8373602,0.00022376,2]
[366242301,1750157445876,-613.8373602,0.00022376,2]
[366242303,1750157445886,-293.50531879,0.00022376,2]
[366242312,1750157445983,-320.33204141,0.00022376,2]
[366242314,1750157445993,-613.8373602,0.00022376,2]
[366242315,1750157446002,-613.8373602,0.00022376,2]
[366242316,1750157446012,-613.8373602,0.00022376,2]
[366242317,1750157446022,-337.2546896,0.00022376,2]
[366242318,1750157446034,-276.5826706,0.00022376,2]
[366242320,1750157446043,-48.07300453,0.00022376,2]
[366242323,1750157446063,-331.266836,0.00022376,2]
[366242328,1750157503896,271.23,0.00018635,2]
[366242329,1750157583145,-161.0,0.00022,2]
[366242330,1750157583177,-500.0,0.00022375,2]
[366242331,1750157583208,-632.65902244,0.00022375,2]
[366242332,1750157583241,-632.65902244,0.00022375,2]
[366242333,1750157583272,-483.01222148,0.00022375,2]
[366242334,1750157583303,-632.65902244,0.00022375,2]
[366242335,1750157583333,-632.65902244,0.00022375,2]
[366242336,1750157583365,-632.65902244,0.00022375,2]
[366242337,1750157583398,-632.65902244,0.00022375,2]
[366242338,1750157583428,-632.65902244,0.00022375,2]
[366242339,1750157583453,-632.65902244,0.00022375,2]
[366242340,1750157583477,-632.65902244,0.00022375,2]
[366242341,1750157583501,-632.65902244,0.00022375,2]
[366242342,1750157583525,-632.65902244,0.00022375,2]
[366242343,1750157583548,-632.65902244,0.00022375,2]
[366242344,1750157583776,-632.65902244,0.00022375,2]
[366242345,1750157583811,-632.65902244,0.00022375,2]
[366242346,1750157583835,-632.65902244,0.00022375,2]
[366242347,1750157583858,-632.65902244,0.00022375,2]
[366242348,1750157583884,-632.65902244,0.00022375,2]
[366242349,1750157583908,-632.65902244,0.00022375,2]
[366242350,1750157583935,-632.65902244,0.00022375,2]
[366242351,1750157583962,-632.65902244,0.00022375,2]
[366242352,1750157583984,-632.65902244,0.00022375,2]
[366242353,1750157584009,-632.65902244,0.00022375,2]
[366242354,1750157584031,-632.65902244,0.00022375,2]